lending/lending_fUSD_20251111
["ID","MTS","AMOUNT","RATE_DAILY","PERIOD"]
[393598048,1762835441215,-151.0,0.00036,7]
[393598049,1762835441227,-152.0,0.00036,7]
[393598050,1762835441238,-151.0,0.00036,7]
[393598051,1762835441248,-152.0,0.00036,7]
[393598052,1762835441259,-151.0,0.00036,7]
[393598053,1762835441269,-152.0,0.00036,7]
[393598054,1762835441280,-151.0,0.00036,7]
[393598055,1762835441291,-222.71219546,0.00036,7]
[393598056,1762835441301,-151.0,0.00036,7]
[393598057,1762835441311,-151.0,0.00036,7]
[393598058,1762835441322,-151.0,0.00036,7]
[393598059,1762835441333,-151.0,0.00036,7]
[393598060,1762835441343,-199.3880896,0.00036,7]
[393598061,1762835441353,-205.26044,0.00036,2]
[393598062,1762835441363,-858.9,0.00036,5]
[393598063,1762835441374,-500.95275004,0.00036034,30]
[393598064,1762835441384,-168.0,0.00036088,2]
[393598065,1762835441394,-167.9,0.000361,14]
[393598066,1762835441405,-655.85,0.00036125,2]
[393598067,1762835441416,-151.0,0.00036164,30]
[393598068,1762835441426,-160.34896,0.00036164,30]
[393598069,1762835441438,-2123.36649124,0.00036189,3]
[393598070,1762835441448,-821.8,0.00036193,30]
[393598071,1762835441458,-168.0,0.00036211,2]
[393598072,1762835441467,-2123.36649124,0.00036268,3]
[393598073,1762835441478,-151.39,0.00036278,2]
[393598074,1762835441698,-5000.0,0.00036278,2]
[393598075,1762835441708,-5000.0,0.00036278,2]
[393598076,1762835441717,-5000.0,0.00036278,2]
[393598077,1762835441727,-5000.0,0.00036278,2]
[393598078,1762835441736,-358.0,0.00036282,120]
[393598079,1762835441747,-2123.36649124,0.00036424,4]
[393598080,1762835441757,-300.0,0.00036432,2]
[393598081,1762835441767,-152.895614,0.00036432,31]
[393598082,1762835441778,-151.0,0.00036432,31]
[393598083,1762835441788,-151.0,0.00036432,31]
[393598084,1762835441798,-264.944354,0.00036432,31]
[393598085,1762835441807,-151.0,0.00036432,31]
[393598086,1762835441816,-151.0,0.00036432,31]
[393598087,1762835441826,-219.92884,0.00036432,31]
[393598088,1762835441835,-151.0,0.00036432,31]
[393598089,1762835441845,-151.0,0.00036432,31]
[393598090,1762835441855,-151.0,0.00036432,31]
[393598091,1762835441865,-151.0,0.00036432,31]
[393598092,1762835441875,-151.0,0.00036432,31]
[393598093,1762835441884,-151.0,0.00036432,31]
[393598094,1762835441894,-17751.91,0.00036434,2]
[393598095,1762835441903,-165.496,0.00036434,31]
[393598096,1762835441913,-156.596614,0.00036434,31]
[393598097,1762835441924,-151.0,0.00036434,31]
[393598098,1762835441934,-151.0,0.00036434,31]
[393598099,1762835441945,-151.0,0.00036434,31]
[393598100,1762835441954,-358.0,0.00036448,2]
[393598101,1762835441964,-205.26044,0.0003646,2]
[393598102,1762835441974,-151.26,0.00036474,2]
[393598103,1762835441985,-300.0,0.00036477,2]
[393598104,1762835441995,-300.0,0.00036493,2]
[393598105,1762835442005,-157.77,0.00036501,2]
[393598106,1762835442015,-2501.83,0.00036618,2]
[393598107,1762835442024,-1512.0,0.00036624,2]
[393598108,1762835442034,-300.0,0.00036639,2]
[393598109,1762835442043,-151.0,0.00036639,31]
[393598110,1762835442053,-166.195446,0.00036639,31]
[393598111,1762835442063,-209.172266,0.0003664,31]
[393598112,1762835442073,-154.798207,0.0003664,31]
[393598113,1762835442082,-360.0,0.00036657,7]
[393598114,1762835442091,-358.0,0.00036662,2]
[393598115,1762835442101,-300.0,0.00036681,2]
[393598116,1762835442111,-500.0,0.00036698,7]
[393598117,1762835442121,-189.21622249,0.00036701,2]
[393598118,1762835442130,-300.0,0.00036715,2]
[393598119,1762835442139,-2123.36649124,0.00036754,4]
[393598120,1762835442149,-183.830681,0.00036759,31]
[393598121,1762835442159,-300.0,0.00036761,2]
[393598122,1762835442168,-2500.0,0.00036764,2]
[393598123,1762835442178,-358.0,0.00036778,2]
[393598124,1762835442187,-2501.83,0.00036809,2]
[393598125,1762835442196,-500.0,0.00036889,120]
[393598126,1762835442206,-211.0,0.0003689,30]
[393598127,1762835442216,-5000.0,0.0003689,30]
[393598128,1762835442226,-358.0,0.00036891,2]
[393598129,1762835442235,-1500.0,0.000369,13]
[393598130,1762835442244,-205.26044,0.0003696,2]
[393598131,1762835442254,-300.0,0.00036964,2]
[393598132,1762835442264,-168.0,0.00036967,2]
[393598133,1762835442274,-609.89150417,0.00036973,5]
[393598134,1762835442283,-300.0,0.00036974,2]
[393598135,1762835442293,-300.0,0.00036975,2]
[393598136,1762835442303,-2500.0,0.00036979,2]
[393598137,1762835442312,-152.732758,0.0003699,31]
[393598138,1762835442322,-153.208999,0.0003699,31]
[393598139,1762835442331,-159.815944,0.0003699,31]
[393598140,1762835442341,-151.0,0.0003699,31]
[393598141,1762835442350,-151.0,0.0003699,31]
[393598142,1762835442359,-151.0,0.0003699,31]
[393598143,1762835442369,-153.145943,0.0003699,14]
[393598144,1762835442378,-152.75456,0.0003699,31]
[393598145,1762835442387,-151.0,0.0003699,31]
[393598146,1762835442397,-153.202601,0.0003699,31]
[393598147,1762835442406,-151.0,0.0003699,31]
[393598149,1762835442416,-173.110584,0.0003699,31]
[393598150,1762835442425,-151.0,0.0003699,31]
[393598151,1762835442434,-151.0,0.0003699,31]
[393598152,1762835442443,-151.0,0.0003699,31]
[393598153,1762835442453,-151.0,0.0003699,31]
[393598154,1762835442462,-152.782305,0.0003699,31]
[393598155,1762835442472,-160.754587,0.0003699,31]
[393598156,1762835442481,-151.616994,0.0003699,31]
[393598157,1762835442490,-153.476624,0.0003699,31]
[393598158,1762835442499,-151.0,0.0003699,31]
[393598159,1762835442509,-151.0,0.0003699,31]
[393598160,1762835442518,-151.0,0.0003699,31]
[393598161,1762835442528,-152.333962,0.0003699,31]
[393598162,1762835442538,-151.0,0.0003699,31]
[393598163,1762835442547,-151.0,0.0003699,31]
[393598164,1762835442556,-191.645498,0.0003699,31]
[393598165,1762835442566,-500.0,0.00036999,7]
[393598166,1762835442576,-234340.49,0.00037,2]
[393598167,1762835442587,-7750.91,0.00037,14]
[393598168,1762835442598,-151.0,0.00037,31]
[393598169,1762835442607,-151.0,0.00037,31]
[393598170,1762835442616,-151.0,0.00037,31]
[393598171,1762835442627,-162.368071,0.00037,31]
[393598172,1762835442637,-151.0,0.00037,31]
[393598173,1762835442647,-151.0,0.00037,31]
[393598174,1762835442656,-153.123438,0.00037,31]
[393598175,1762835442665,-151.0,0.00037,31]
[393598176,1762835442676,-151.0,0.00037,31]
[393598177,1762835442687,-151.0,0.00037,31]
[393598178,1762835442697,-193.273348,0.00037,31]
[393598179,1762835442707,-151.897693,0.00037,31]
[393598180,1762835442717,-168.940309,0.00037,31]
[393598181,1762835442727,-151.0,0.00037,31]
[393598182,1762835442737,-151.0,0.00037,31]
[393598183,1762835442747,-151.0,0.00037,31]
[393598184,1762835442756,-151.0,0.00037,31]
[393598185,1762835442765,-213.591452,0.00037,31]
[393598186,1762835442774,-151.0,0.00037,31]
[393598187,1762835442783,-151.0,0.00037,31]
[393598188,1762835442793,-151.0,0.00037,31]
[393598189,1762835442804,-151.0,0.00037,31]
[393598190,1762835442814,-151.0,0.00037,31]
[393598191,1762835442822,-151.0,0.00037,31]
[393598192,1762835442832,-151.0,0.00037,31]
[393598193,1762835442841,-169.283365,0.00037,31]
[393598194,1762835442850,-300.0,0.00037008,2]
[393598195,1762835442861,-300.0,0.00037031,2]
[393598196,1762835442871,-300.0,0.00037038,2]
[393598197,1762835442881,-300.0,0.00037069,2]
[393598198,1762835442891,-1000.0,0.00037069,2]
[393598199,1762835442901,-300.0,0.0003707,2]
[393598200,1762835442911,-300.0,0.00037083,2]
[393598201,1762835442920,-300.0,0.00037087,2]
[393598202,1762835442930,-699.29,0.000371,2]
[393598203,1762835442939,-714.81,0.000371,2]
[393598204,1762835442948,-699.29,0.000371,2]
[393598205,1762835442958,-699.29,0.000371,2]
[393598206,1762835442967,-699.29,0.000371,2]
[393598207,1762835442977,-699.29,0.000371,2]
[393598208,1762835442987,-699.29,0.000371,2]
[393598209,1762835442997,-300.0,0.00037105,2]
[393598210,1762835443006,-1063.21,0.00037108,2]
[393598211,1762835443015,-300.0,0.00037126,2]
[393598212,1762835443025,-300.0,0.0003717,2]
[393598213,1762835443035,-181.62923606,0.000372,120]
[393598214,1762835443045,-168.0,0.00037253,2]
[393598215,1762835443055,-153.0,0.00037255,2]
[393598216,1762835443064,-153.0,0.00037255,2]
[393598217,1762835443074,-153.0,0.00037255,2]
[393598218,1762835443083,-153.0,0.00037255,2]
[393598219,1762835443092,-153.0,0.00037255,2]
[393598220,1762835443102,-153.0,0.00037256,2]
[393598221,1762835443112,-153.0,0.00037256,2]
[393598222,1762835443122,-153.0,0.00037256,2]
[393598223,1762835443132,-153.0,0.00037256,2]
[393598224,1762835443142,-153.0,0.00037256,2]
[393598225,1762835443151,-153.0,0.00037256,2]
[393598226,1762835443160,-153.0,0.00037256,2]
[393598227,1762835443169,-201.85,0.00037265,2]
[393598228,1762835443179,-152.0,0.00037274,3]
[393598229,1762835443189,-300.0,0.00037299,2]
[393598230,1762835443199,-167.9,0.000373,14]
[393598231,1762835443209,-300.0,0.00037357,2]
[393598232,1762835443218,-300.0,0.00037399,2]
[393598233,1762835443227,-168.0,0.00037411,2]
[393598234,1762835443237,-300.0,0.0003743,2]
[393598235,1762835443247,-300.0,0.0003744,2]
[393598236,1762835443256,-300.0,0.00037447,2]
[393598237,1762835443266,-613.921886,0.00037455,2]
[393598238,1762835443275,-205.26044,0.0003746,2]
[393598239,1762835443285,-300.0,0.0003749,2]
[393598240,1762835443294,-168.0,0.00037554,2]
[393598241,1762835443304,-300.0,0.00037568,2]
[393598242,1762835443313,-437.23950576,0.00037571,2]
[393598243,1762835443323,-358.0,0.00037578,2]
[393598244,1762835443333,-300.0,0.00037591,2]
[393598245,1762835443342,-300.0,0.00037594,2]
[393598246,1762835443351,-157.77,0.00037667,2]
[393598247,1762835443361,-10809.21127378,0.00037669,2]
[393598248,1762835443371,-300.0,0.00037728,2]
[393598249,1762835443380,-300.0,0.00037772,2]
[393598250,1762835443390,-500.0,0.00037797,7]
[393598251,1762835443399,-1000.0,0.000378,7]
[393598252,1762835443409,-613.92188597,0.00037809,2]
[393598253,1762835443418,-300.0,0.00037912,2]
[393598254,1762835443428,-300.0,0.00037952,2]
[393598255,1762835443437,-300.0,0.00037953,2]
[393598256,1762835443448,-205.26044,0.0003796,2]
[393598257,1762835443459,-150.12918919,0.00037973,5]
[393598258,1762835443470,-17835.999998,0.00038,7]
[393598259,1762835443480,-243.0,0.00038,120]
[393598260,1762835443490,-2000.0,0.00038,2]
[393598261,1762835443499,-2000.0,0.00038,2]
[393598262,1762835443508,-2000.0,0.00038,2]
[393598263,1762835443518,-2000.0,0.00038,2]
[393598264,1762835443528,-2000.0,0.00038,2]
[393598265,1762835443538,-2000.0,0.00038,2]
[393598266,1762835443548,-2000.0,0.00038,2]
[393598267,1762835443558,-200.0,0.00038,120]
[393598268,1762835443569,-7750.91,0.00038,14]
[393598269,1762835443579,-2000.0,0.00038,2]
[393598270,1762835443591,-151.0,0.00038,31]
[393598271,1762835443602,-273.90176,0.00038,31]
[393598272,1762835443612,-151.0,0.00038,31]
[393598273,1762835443622,-151.0,0.00038,31]
[393598274,1762835443631,-174.507721,0.00038,31]
[393598275,1762835443642,-185.02724231,0.00038,31]
[393598276,1762835443652,-151.0,0.00038,31]
[393598277,1762835443662,-167.940992,0.00038,31]
[393598278,1762835443673,-300.0,0.00038024,2]
[393598279,1762835443683,-150.0,0.00038027,2]
[393598280,1762835443692,-150.0,0.00038027,2]
[393598281,1762835443702,-150.0,0.00038027,2]
[393598282,1762835443712,-150.0,0.00038027,2]
[393598283,1762835443722,-301.98,0.00038027,2]
[393598284,1762835443733,-150.0,0.00038027,2]
[393598285,1762835443743,-168.0,0.00038086,2]
[393598286,1762835443752,-1250.53,0.00038099,2]
[393598287,1762835443762,-613.92188597,0.00038162,2]
[393598288,1762835443771,-300.0,0.00038167,2]
[393598289,1762835443780,-697.29,0.000382,30]
[393598290,1762835443790,-168.0,0.00038214,2]
[393598291,1762835443800,-300.0,0.00038235,2]
[393598292,1762835443810,-300.0,0.00038241,2]
[393598293,1762835443820,-300.0,0.00038247,2]
[393598294,1762835443829,-168.0,0.00038258,2]
[393598295,1762835443839,-300.0,0.00038297,2]
[393598296,1762835443849,-300.0,0.00038334,2]
[393598297,1762835443859,-195.50802629,0.00038345,120]
[393598298,1762835443870,-1000.0,0.00038356,2]
[393598299,1762835443879,-1000.0,0.00038356,2]
[393598300,1762835443889,-1000.0,0.00038356,2]
[393598301,1762835443899,-1000.0,0.00038356,2]
[393598302,1762835443908,-1000.0,0.00038356,2]
[393598303,1762835443918,-1000.0,0.00038356,2]
[393598304,1762835443928,-1000.0,0.00038356,2]
[393598305,1762835443937,-1000.0,0.00038356,2]
[393598306,1762835443947,-1000.0,0.00038356,2]
[393598307,1762835443957,-1000.0,0.00038356,2]
[393598308,1762835443966,-1000.0,0.00038356,2]
[393598309,1762835443976,-1000.0,0.00038356,2]
[393598310,1762835443986,-1084.87375295,0.00038356,2]
[393598311,1762835443996,-1374.16,0.00038356,2]
[393598312,1762835444006,-1374.16,0.00038356,2]
[393598313,1762835444015,-1374.16,0.00038356,2]
[393598314,1762835444024,-1374.16,0.00038356,2]
[393598315,1762835444034,-500.0,0.00038356,2]
[393598316,1762835444044,-295.344308,0.00038356,31]
[393598317,1762835444052,-1178.71,0.00038356,2]
[393598318,1762835444062,-1178.71,0.00038356,2]
[393598319,1762835444072,-1178.71,0.00038356,2]
[393598320,1762835444082,-1178.71,0.00038356,2]
[393598321,1762835444091,-1178.71,0.00038356,2]
[393598322,1762835444100,-1178.71,0.00038356,2]
[393598323,1762835444110,-1178.71,0.00038356,2]
[393598324,1762835444120,-1178.71,0.00038356,2]
[393598325,1762835444130,-1178.71,0.00038356,2]
[393598326,1762835444139,-1178.71,0.00038356,2]
[393598327,1762835444148,-1178.71,0.00038356,2]
[393598328,1762835444158,-1178.71,0.00038356,2]
[393598329,1762835444167,-1178.71,0.00038356,2]
[393598330,1762835444177,-1178.71,0.00038356,2]
[393598331,1762835444186,-1178.71,0.00038356,2]
[393598332,1762835444196,-1178.71,0.00038356,2]
[393598333,1762835444206,-1178.71,0.00038356,2]
[393598334,1762835444216,-1178.71,0.00038356,2]
[393598335,1762835444225,-1178.71,0.00038356,2]
[393598336,1762835444235,-1178.71,0.00038356,2]
[393598337,1762835444244,-1178.71,0.00038356,2]
[393598338,1762835444254,-1178.71,0.00038356,2]
[393598339,1762835444263,-1178.71,0.00038356,2]
[393598340,1762835444273,-1178.81643746,0.00038356,2]
[393598341,1762835444282,-300.0,0.00038356,2]
[393598342,1762835444292,-300.0,0.00038356,2]
[393598343,1762835444301,-300.0,0.00038356,2]
[393598344,1762835444311,-300.0,0.00038356,2]
[393598345,1762835444320,-300.0,0.00038356,2]
[393598346,1762835444330,-300.0,0.00038356,2]
[393598347,1762835444339,-300.0,0.00038356,2]
[393598348,1762835444350,-300.0,0.00038356,2]
[393598349,1762835444360,-300.0,0.00038356,2]
[393598350,1762835444370,-300.0,0.00038356,2]
[393598351,1762835444379,-300.0,0.00038356,2]
[393598352,1762835444389,-300.0,0.00038356,2]
[393598353,1762835444398,-300.0,0.00038356,2]
[393598354,1762835444407,-333.74453563,0.00038356,2]
[393598355,1762835444416,-205.930075,0.00038356,7]
[393598356,1762835444426,-205.930075,0.00038356,7]
[393598357,1762835444435,-205.930075,0.00038356,7]
[393598358,1762835444444,-205.930075,0.00038356,7]
[393598359,1762835444453,-205.930075,0.00038356,7]
[393598360,1762835444462,-205.930075,0.00038356,7]
[393598361,1762835444471,-205.930075,0.00038356,7]
[393598362,1762835444481,-205.930075,0.00038356,7]
[393598363,1762835444490,-205.930075,0.00038356,7]
[393598364,1762835444500,-205.930075,0.00038356,7]
[393598365,1762835444510,-205.930075,0.00038356,7]
[393598366,1762835444519,-205.930075,0.00038356,7]
[393598367,1762835444529,-151.0,0.00038378,120]
[393598368,1762835444539,-151.0,0.00038378,120]
[393598369,1762835444548,-205.930075,0.00038378,7]
[393598370,1762835444558,-205.930075,0.00038378,7]
[393598371,1762835444567,-205.930075,0.00038378,7]
[393598372,1762835444577,-205.930075,0.00038378,7]
[393598373,1762835444589,-371.73,0.000384,120]
[393598374,1762835444599,-167.9,0.000384,14]
[393598376,1762835444608,-300.0,0.00038416,2]
[393598378,1762835444619,-300.0,0.00038464,2]
[393598380,1762835444629,-366.7880004,0.00038501,2]
[393598381,1762835444639,-613.92188597,0.00038516,2]
[393598382,1762835444648,-500.0,0.00038597,7]
[393598383,1762835444657,-500.0,0.00038597,7]
[393598384,1762835444668,-500.0,0.00038597,7]
[393598385,1762835444677,-500.0,0.00038597,7]
[393598386,1762835444686,-500.0,0.00038597,7]
[393598387,1762835444696,-500.0,0.00038597,7]
[393598388,1762835444705,-500.0,0.00038597,7]
[393598389,1762835444714,-500.0,0.00038597,7]
[393598390,1762835444724,-500.0,0.00038597,7]
[393598391,1762835444832,-500.0,0.00038597,7]
[393598392,1762835444863,-219.57,0.00038597,7]
[393598393,1762835444873,-512.69,0.00038597,7]
[393598394,1762835444882,-226.443274,0.00038597,120]
[393598395,1762835444891,-300.0,0.00038605,91]
[393598396,1762835444901,-151.52,0.00038607,2]
[393598397,1762835444911,-150.0,0.00038607,2]
[393598398,1762835444920,-150.0,0.00038607,2]
[393598399,1762835444930,-150.0,0.00038607,2]
[393598400,1762835444939,-169.21,0.00038607,2]
[393598401,1762835444949,-1206.87,0.00038607,2]
[393598402,1762835444958,-150.0,0.00038607,2]
[393598403,1762835444968,-549.62,0.00038607,2]
[393598404,1762835444978,-416.14,0.00038607,2]
[393598405,1762835444988,-150.0,0.00038607,2]
[393598406,1762835444997,-1206.87,0.00038607,2]
[393598407,1762835445007,-549.62,0.00038607,2]
[393598408,1762835445017,-416.14,0.00038607,2]
[393598409,1762835445026,-150.0,0.00038607,2]
[393598410,1762835445036,-169.21,0.00038607,2]
[393598411,1762835445046,-150.0,0.00038607,2]
[393598412,1762835445055,-1206.87,0.00038607,2]
[393598413,1762835445065,-169.21,0.00038607,2]
[393598414,1762835445074,-549.62,0.00038607,2]
[393598416,1762835445084,-416.14,0.00038607,2]
[393598417,1762835445093,-150.0,0.00038607,2]
[393598418,1762835445103,-416.14,0.00038607,2]
[393598419,1762835445112,-150.0,0.00038607,2]
[393598420,1762835445122,-353.83,0.00038607,2]
[393598421,1762835445132,-1206.87,0.00038607,2]
[393598422,1762835445140,-169.21,0.00038607,2]
[393598423,1762835445149,-549.62,0.00038607,2]
[393598424,1762835445158,-1206.87,0.00038607,2]
[393598425,1762835445168,-150.0,0.00038607,2]
[393598426,1762835445177,-169.21,0.00038607,2]
[393598427,1762835445186,-177.09,0.00038607,2]
[393598428,1762835445195,-549.62,0.00038607,2]
[393598429,1762835445205,-2412.8,0.00038607,2]
[393598430,1762835445214,-177.09,0.00038607,2]
[393598431,1762835445223,-338.25,0.00038607,2]
[393598432,1762835445233,-169.21,0.00038607,2]
[393598433,1762835445242,-177.09,0.00038607,2]
[393598434,1762835445252,-1206.87,0.00038607,2]
[393598435,1762835445262,-181.92,0.00038607,2]
[393598436,1762835445272,-317.35,0.00038607,2]
[393598437,1762835445282,-1206.87,0.00038607,2]
[393598438,1762835445291,-177.09,0.00038607,2]
[393598439,1762835445301,-169.21,0.00038607,2]
[393598440,1762835445310,-169.21,0.00038607,2]
[393598441,1762835445320,-177.09,0.00038607,2]
[393598442,1762835445329,-177.09,0.00038607,2]
[393598443,1762835445339,-177.09,0.00038607,2]
[393598444,1762835445349,-177.09,0.00038607,2]
[393598445,1762835445358,-300.0,0.00038617,2]
[393598446,1762835445367,-151.26,0.00038619,2]
[393598447,1762835445378,-157.37,0.00038631,120]
[393598448,1762835445388,-300.0,0.00038646,2]
[393598449,1762835445397,-300.0,0.00038647,2]
[393598451,1762835445407,-1250.53,0.00038664,2]
[393598453,1762835445416,-151.0,0.00038676,120]
[393598455,1762835445425,-151.0,0.00038676,120]
[393598457,1762835445435,-151.0,0.00038676,120]
[393598459,1762835445444,-151.0,0.00038676,120]
[393598461,1762835445454,-151.0,0.00038676,120]
[393598463,1762835445463,-151.0,0.00038676,120]
[393598465,1762835445473,-151.0,0.00038676,120]
[393598466,1762835445482,-151.0,0.00038676,120]
[393598467,1762835445492,-609.53180626,0.00038678,11]
[393598468,1762835445502,-609.53180621,0.00038678,11]
[393598469,1762835445511,-609.53180621,0.00038678,11]
[393598470,1762835445520,-300.0,0.00038692,2]
[393598471,1762835445529,-300.0,0.00038705,2]
[393598472,1762835445540,-300.0,0.00038714,2]
[393598473,1762835445549,-906.0,0.00038723,2]
[393598474,1762835445558,-300.0,0.00038732,2]
[393598475,1762835445567,-168.0,0.00038733,2]
[393598476,1762835445578,-300.0,0.0003875,2]
[393598477,1762835445588,-300.0,0.00038758,2]
[393598478,1762835445600,-300.0,0.0003876,2]
[393598479,1762835445609,-300.0,0.00038794,2]
[393598480,1762835445619,-150.0,0.00038799,20]
[393598481,1762835445631,-7750.91,0.000388,14]
[393598482,1762835445641,-765.28,0.000388,60]
[393598483,1762835445651,-2000.0,0.000388,14]
[393598484,1762835445661,-81930.80185806,0.000388,120]
[393598485,1762835445670,-151.0,0.000388,91]
[393598486,1762835445680,-151.0,0.000388,120]
[393598487,1762835445690,-275.959815,0.00038808,120]
[393598488,1762835445699,-290.692538,0.00038808,120]
[393598489,1762835445709,-157.77,0.00038834,2]
[393598490,1762835445719,-205.930075,0.00038849,7]
[393598491,1762835445730,-205.930075,0.00038849,7]
[393598492,1762835445740,-205.930075,0.00038849,7]
[393598493,1762835445749,-205.930079,0.00038849,7]
[393598494,1762835445758,-177.09,0.00038849,2]
[393598495,1762835445768,-1206.87,0.00038849,2]
[393598496,1762835445777,-169.21,0.00038849,2]
[393598497,1762835445787,-150.0,0.00038849,2]
[393598498,1762835445796,-150.0,0.00038849,2]
[393598499,1762835445806,-177.09,0.00038849,2]
[393598500,1762835445816,-169.21,0.00038849,2]
[393598501,1762835445825,-1206.87,0.00038849,2]
[393598502,1762835445835,-151.81,0.00038849,2]
[393598503,1762835445844,-416.14,0.00038849,2]
[393598504,1762835445856,-150.0,0.00038849,2]
[393598505,1762835445867,-150.0,0.00038849,2]
[393598506,1762835445878,-169.21,0.00038849,2]
[393598507,1762835445889,-177.09,0.00038849,2]
[393598508,1762835445898,-150.0,0.00038849,2]
[393598509,1762835445909,-416.14,0.00038849,2]
[393598510,1762835445918,-1206.87,0.00038849,2]
[393598511,1762835445928,-150.0,0.00038849,2]
[393598512,1762835445938,-177.09,0.00038849,2]
[393598513,1762835445947,-150.0,0.00038849,2]
[393598514,1762835445957,-416.14,0.00038849,2]
[393598515,1762835445966,-169.21,0.00038849,2]
[393598516,1762835445976,-1206.87,0.00038849,2]
[393598517,1762835445985,-150.0,0.00038849,2]
[393598518,1762835445995,-150.0,0.00038849,2]
[393598519,1762835446004,-1206.87,0.00038849,2]
[393598520,1762835446013,-169.21,0.00038849,2]
[393598521,1762835446023,-416.14,0.00038849,2]
[393598522,1762835446032,-177.09,0.00038849,2]
[393598523,1762835446043,-228.48,0.00038849,2]
[393598524,1762835446053,-150.0,0.00038849,2]
[393598525,1762835446063,-214.3,0.00038849,2]
[393598526,1762835446072,-416.14,0.00038849,2]
[393598527,1762835446082,-150.0,0.00038849,2]
[393598528,1762835446091,-300.0,0.0003885,2]
[393598529,1762835446101,-613.92188597,0.00038869,2]
[393598530,1762835446110,-300.0,0.00038875,2]
[393598531,1762835446120,-150.0,0.00038889,7]
[393598532,1762835446131,-300.0,0.0003889,2]
[393598533,1762835446140,-300.0,0.00038895,2]
[393598534,1762835446149,-364.09596743,0.000389,120]
[393598535,1762835446159,-2500.0,0.000389,14]
[393598536,1762835446168,-211.0,0.0003891,30]
[393598537,1762835446178,-300.0,0.00038933,2]
[393598538,1762835446187,-505.15485625,0.0003895,120]
[393598539,1762835446196,-300.0,0.00038979,2]
[393598540,1762835446205,-445.0,0.00038986,90]
[393598541,1762835446215,-300.0,0.00038992,2]
[393598542,1762835446224,-1395.08,0.00038995,2]
[393598543,1762835446233,-699.29,0.00038997,2]
[393598544,1762835446242,-477.64,0.00038997,2]
[393598545,1762835446251,-699.29,0.00038997,2]
[393598546,1762835446261,-477.64,0.00038997,2]
[393598547,1762835446270,-477.64,0.00038997,2]
[393598548,1762835446280,-1142.38,0.00038997,2]
[393598549,1762835446290,-699.29,0.00038997,2]
[393598550,1762835446300,-477.64,0.00038997,2]
[393598551,1762835446310,-699.29,0.00038997,2]
[393598552,1762835446320,-477.64,0.00038997,2]
[393598553,1762835446329,-494.34,0.00038997,2]
[393598554,1762835446338,-164.69,0.00038997,2]
[393598555,1762835446348,-699.29,0.00038997,2]
[393598556,1762835446358,-699.29,0.00038997,2]
[393598557,1762835446367,-699.29,0.00038997,2]
[393598559,1762835446378,-699.29,0.00038997,2]
[393598561,1762835446387,-699.29,0.00038997,2]
[393598563,1762835446397,-172.09582685,0.00039,2]